[Event "SVK ECo-C Extraliga 2018-19"]
[Site "Slovakia"]
[Date "2019.03.09"]
[Round "7.8"]
[White "Takacs, Laszlo"]
[Black "Bombek, Peter"]
[Result "0-1"]
[ECO "C11"]
[WhiteElo "2295"]
[BlackElo "2205"]
[Annotator "NA"]
[PlyCount "126"]
[EventDate "2018.11.10"]
[EventType "team-tourn"]
[EventCountry "SVK"]
[SourceTitle "playchess.com"]
[Source "ChessBase"]
[SourceQuality "1"]
[WhiteTeam "Streda"]
[BlackTeam "Dubnica"]
[TimeControl "40/5400+30:1800+30"]

1. e4 {[%emt 0:00:00]} e6 {[%emt 0:00:00]} 2. d4 {[%emt 0:00:00]} d5 {[%emt 0:00:00]} 3. Nc3 {[%emt 0:00:00]} Nf6 {[%emt 0:00:05]} 4. e5 {[%emt 0:00:00]} Nfd7 {[%emt 0:00:04]} 5. Nce2 {[%emt 0:00:04]} c5 {[%emt 0:00:38]} 6. c3 {[%emt 0:00:04]} Nc6 {[%emt 0:00:16]} 7. Nf3 {[%emt 0:00:12]} Qb6 {[%emt 0:00:55]} 8. a3 {[%emt 0:00:07]} a5 {[%emt 0:00:52]} 9. h4 {[%emt 0:01:02]} a4 {[%emt 0:04:54]} 10. Nf4 {[%emt 0:01:28]} Qb3 {[%emt 0:05:59]} 11. Be2 {[%emt 0:13:16]} Qxd1+ {[%emt 0:01:39]} 12. Bxd1 {[%emt 0:00:47]} Nb6 {[%emt 0:03:55]} 13. Nd3 {[%emt 0:15:54]} cxd4 {[%emt 0:04:22]} 14. cxd4 {[%emt 0:10:36]} Bd7 {[%emt 0:04:01]} 15. Bd2 {[%emt 0:17:38]} Na5 {[%emt 0:07:29]} 16. Bxa5 {[%emt 0:09:04]} Rxa5 {[%emt 0:01:29]} 17. Nd2 {[%emt 0:00:29]} Be7 {[%emt 0:07:57]} 18. Rc1 {[%emt 0:00:21]} O-O {[%emt 0:03:35]} 19. Rc7 {[%emt 0:11:05]} Bd8 {[%emt 0:03:06]} 20. Rc3 {[%emt 0:01:08]} f6 {[%emt 0:05:35]} 21. Nf3 {[%emt 0:04:28]} Nc4 {[%emt 0:03:15]} 22. O-O {[%emt 0:01:53]} Bb6 {[%emt 0:03:32]} 23. exf6 {[%emt 0:01:26]} gxf6 {[%emt 0:02:30]} 24. Be2 {[%emt 0:02:29]} Rb5 {[%emt 0:02:08]} 25. Nb4 {[%emt 0:02:30]} Ba5 {[%emt 0:03:34]} 26. Bxc4 {[%emt 0:00:14]} dxc4 {[%emt 0:00:22]} 27. Rxc4 {[%emt 0:00:12]} Bxb4 {[%emt 0:01:02]} 28. axb4 {[%emt 0:00:10]} Bc6 {[%emt 0:00:30]} 29. Re1 {[%emt 0:04:29]} Bd5 {[%emt 0:00:27]} 30. Rc3 {[%emt 0:00:18]} Rxb4 {[%emt 0:00:48]} 31. Re2 {[%emt 0:00:18]} b5 {[%emt 0:11:44]} 32. Rc5 {[%emt 0:02:02]} Rd8 {[%emt 0:02:39]} 33. Rc7 {[%emt 0:00:23]} Rc4 {[%emt 0:02:07]} 34. Re7 {[%emt 0:01:01]} b4 {[%emt 0:04:32]} 35. Re3 {[%emt 0:00:24]} h5 {[%emt 0:03:10]} 36. Kh2 {[%emt 0:01:52]} Rf8 {[%emt 0:02:31]} 37. Kh3 {[%emt 0:00:31]} Rf7 {[%emt 0:01:47]} 38. Re8+ {[%emt 0:00:02]} Kh7 {[%emt 0:01:44]} 39. Rb8 {[%emt 0:00:32]} Ra7 {[%emt 0:00:52]} 40. Ne1 {[%emt 0:00:52]} a3 {[%emt 0:01:14]} 41. bxa3 {[%emt 0:04:57]} bxa3 {[%emt 0:01:04]} 42. Rb1 {[%emt 0:05:17]} a2 {[%emt 0:02:44]} 43. Ra1 {[%emt 0:00:04]} Rxd4 {[%emt 0:02:32]} 44. Nc2 {[%emt 0:11:29]} Rd2 {[%emt 0:04:26]} 45. Nb4 {[%emt 0:00:14]} Rxf2 {[%emt 0:00:56]} 46. Nxd5 {[%emt 0:00:11]} exd5 {[%emt 0:00:05]} 47. Rb3 {[%emt 0:01:44]} d4 {[%emt 0:04:52]} 48. Kg3 {[%emt 0:03:34]} Rc2 {[%emt 0:05:02]} 49. Rf3 {[%emt 0:02:55]} Rb2 {[%emt 0:01:59]} 50. Rff1 {[%emt 0:00:04]} Rg7+ {[%emt 0:01:24]} 51. Kf3 {[%emt 0:00:34]} Rbxg2 {[%emt 0:01:50]} 52. Ke4 {[%emt 0:00:28]} Ra7 {[%emt 0:04:56]} 53. Rxf6 {[%emt 0:00:48]} Rg4+ {[%emt 0:01:01]} 54. Kd5 {[%emt 0:02:38]} d3 {[%emt 0:01:26]} 55. Kc5 {[%emt 0:01:41]} Rxh4 {[%emt 0:01:37]} 56. Rd6 {[%emt 0:00:23]} Rh3 {[%emt 0:01:17]} 57. Kb6 {[%emt 0:01:02]} Ra4 {[%emt 0:00:26]} 58. Kb5 {[%emt 0:00:14]} Rhh4 {[%emt 0:00:54]} 59. Rd7+ {[%emt 0:01:18]} Kg6 {[%emt 0:00:25]} 60. Rd6+ {[%emt 0:00:03]} Kf7 {[%emt 0:00:32]} 61. Kc6 {[%emt 0:00:56]} Ra6+ {[%emt 0:00:32]} 62. Kd5 {[%emt 0:00:01]} Rxd6+ {[%emt 0:00:24]} 63. Kxd6 {[%emt 0:00:02]} Ra4 {[%emt 0:00:56]} 0-1

[Event "SVK ECo-C Extraliga 2018-19"]
[Site "Slovakia"]
[Date "2019.03.09"]
[Round "7.8"]
[White "Mudrak, Josef"]
[Black "Dvorak, Vladimir"]
[Result "1/2-1/2"]
[ECO "A85"]
[WhiteElo "2246"]
[BlackElo "1883"]
[Annotator "NA"]
[PlyCount "82"]
[EventDate "2018.11.10"]
[EventType "team-tourn"]
[EventCountry "SVK"]
[SourceTitle "playchess.com"]
[Source "ChessBase"]
[SourceQuality "1"]
[TimeControl "40/5400+30:1800+30"]

1. d4 {[%emt 1:20:23]} e6 {[%emt 1:20:21]} 2. c4 {[%emt 0:00:37]} f5 {[%emt 0:00:27]} 3. Nc3 {[%emt 0:00:27]} Nf6 {[%emt 0:00:26]} 4. e3 {[%emt 0:00:28]} Bb4 {[%emt 0:00:28]} 5. Qc2 {[%emt 0:00:29]} O-O {[%emt 0:00:32]} 6. f3 {[%emt 0:00:36]} b6 {[%emt 0:00:44]} 7. Bd3 {[%emt 0:00:28]} Bb7 {[%emt 0:00:28]} 8. Nge2 {[%emt 0:00:29]} d6 {[%emt 0:00:32]} 9. Bd2 {[%emt 0:00:28]} Nbd7 {[%emt 0:00:34]} 10. O-O-O {[%emt 0:00:41]} Qe7 {[%emt 0:00:33]} 11. Rhg1 {[%emt 0:00:40]} a5 {[%emt 0:00:42]} 12. Rdf1 {[%emt 0:00:48]} c5 {[%emt 0:00:39]} 13. g4 {[%emt 0:00:34]} fxg4 {[%emt 0:00:50]} 14. fxg4 {[%emt 0:00:28]} g6 {[%emt 0:00:33]} 15. h4 {[%emt 0:01:41]} e5 {[%emt 0:00:46]} 16. g5 {[%emt 0:00:44]} Nh5 {[%emt 0:01:17]} 17. Bxg6 {[%emt 0:00:39]} hxg6 {[%emt 0:00:42]} 18. Qxg6+ {[%emt 0:00:28]} Ng7 {[%emt 0:00:41]} 19. d5 {[%emt 0:00:55]} Rxf1+ {[%emt 0:00:33]} 20. Rxf1 {[%emt 0:00:27]} Rf8 {[%emt 0:00:42]} 21. Rg1 {[%emt 0:00:51]} Rf2 {[%emt 0:02:34]} 22. a3 {[%emt 0:01:24]} Nf8 {[%emt 0:00:49]} 23. Qd3 {[%emt 0:01:43]} Bxc3 {[%emt 0:01:09]} 24. Nxc3 {[%emt 0:00:38]} Bc8 {[%emt 0:00:53]} 25. Be1 {[%emt 0:00:50]} Rf3 {[%emt 0:01:19]} 26. Qe2 {[%emt 0:01:48]} e4 {[%emt 0:00:58]} 27. Bg3 {[%emt 0:00:40]} Ng6 {[%emt 0:01:38]} 28. Bxd6 {[%emt 0:00:51]} Qxd6 {[%emt 0:00:33]} 29. Nxe4 {[%emt 0:00:27]} Qf8 {[%emt 0:00:31]} 30. Nf6+ {[%emt 0:00:48]} Rxf6 {[%emt 0:00:30]} 31. gxf6 {[%emt 0:00:03]} Qxf6 32. h5 {[%emt 0:01:24]} Ne5 {[%emt 0:01:03]} 33. Rf1 {[%emt 0:01:05]} Qg5 {[%emt 0:00:45]} 34. Kb1 {[%emt 0:00:36]} Bf5+ {[%emt 0:00:27]} 35. Ka2 {[%emt 0:00:31]} Bd3 {[%emt 0:00:31]} 36. Qf2 {[%emt 0:00:36]} Bxf1 {[%emt 0:00:28]} 37. Qxf1 {[%emt 0:00:26]} Qxh5 {[%emt 0:00:39]} 38. Qf6 {[%emt 0:00:39]} Qf5 {[%emt 0:00:31]} 39. Qxb6 {[%emt 0:00:36]} Nxc4 {[%emt 0:00:36]} 40. Qxc5 {[%emt 0:00:44]} Nxe3 {[%emt 0:00:36]} 41. Qxa5 {[%emt 0:30:36]} Qxd5+ {[%emt 0:30:34]} 1/2-1/2

[Event "SVK ECo-C Extraliga 2018-19"]
[Site "Slovakia"]
[Date "2019.03.09"]
[Round "7.8"]
[White "Fiacan, Robert"]
[Black "Federic, Jozef"]
[Result "1-0"]
[ECO "B23"]
[WhiteElo "2242"]
[BlackElo "2207"]
[Annotator "NA"]
[PlyCount "67"]
[EventDate "2018.11.10"]
[EventType "team-tourn"]
[EventCountry "SVK"]
[SourceTitle "playchess.com"]
[Source "ChessBase"]
[SourceQuality "1"]
[WhiteTeam "Snina"]
[BlackTeam "Modra"]
[TimeControl "40/5400+30:1800+30"]

1. e4 {[%emt 0:00:00]} c5 {[%emt 0:00:00]} 2. Nc3 {[%emt 0:00:00]} e6 {[%emt 0:00:00]} 3. f4 {[%emt 0:00:19]} Nc6 {[%emt 0:01:54]} 4. Nf3 {[%emt 0:00:42]} d6 {[%emt 0:01:38]} 5. Bc4 {[%emt 0:04:50]} Nf6 {[%emt 0:01:15]} 6. d3 {[%emt 0:07:28]} Be7 {[%emt 0:01:05]} 7. O-O {[%emt 0:01:10]} O-O {[%emt 0:00:27]} 8. Bb3 {[%emt 0:07:09]} Na5 {[%emt 0:09:02]} 9. e5 {[%emt 0:06:36]} dxe5 {[%emt 0:03:32]} 10. fxe5 {[%emt 0:00:18]} Nd7 {[%emt 0:00:25]} 11. Qe1 {[%emt 0:04:07]} b6 {[%emt 0:09:42]} 12. Qg3 {[%emt 0:05:25]} Kh8 {[%emt 0:10:02]} 13. Ng5 {[%emt 0:15:34]} Bxg5 {[%emt 0:06:19]} 14. Bxg5 {[%emt 0:00:27]} f6 {[%emt 0:00:23]} 15. exf6 {[%emt 0:03:43]} Nxf6 {[%emt 0:04:07]} 16. Ne4 {[%emt 0:06:06]} Nxb3 {[%emt 0:10:32]} 17. axb3 {[%emt 0:02:25]} Qd4+ {[%emt 0:13:49]} 18. Kh1 {[%emt 0:01:16]} Bb7 {[%emt 0:00:58]} 19. Nxf6 {[%emt 0:08:42]} gxf6 {[%emt 0:00:39]} 20. c3 {[%emt 0:00:32]} Qd5 {[%emt 0:11:47]} 21. Rxf6 {[%emt 0:06:34]} Rg8 {[%emt 0:00:07]} 22. h4 {[%emt 0:00:14]} Rg7 {[%emt 0:01:59]} 23. Raf1 {[%emt 0:02:38]} Rag8 {[%emt 0:02:47]} 24. R6f2 {[%emt 0:07:27]} h6 {[%emt 0:02:34]} 25. Bf6 {[%emt 0:01:21]} Kh7 {[%emt 0:00:01]} 26. Bxg7 {[%emt 0:01:03]} Rxg7 {[%emt 0:00:02]} 27. Qh3 {[%emt 0:01:45]} h5 {[%emt 0:04:05]} 28. Re1 {[%emt 0:02:47]} Rg4 {[%emt 0:00:24]} 29. d4 {[%emt 0:02:07]} cxd4 {[%emt 0:01:57]} 30. c4 {[%emt 0:00:24]} Qd8 {[%emt 0:00:37]} 31. Qd3+ {[%emt 0:00:27]} Be4 {[%emt 0:00:12]} 32. Rxe4 {[%emt 0:00:36]} Qxh4+ {[%emt 0:00:23]} 33. Kg1 {[%emt 0:00:06]} Rxe4 {[%emt 0:00:43]} 34. Re2 {[%emt 0:00:17]} 1-0

[Event "SVK ECo-C Extraliga 2018-19"]
[Site "Slovakia"]
[Date "2019.03.09"]
[Round "7.8"]
[White "Danada, Tomas"]
[Black "Gasa, Patrik"]
[Result "1-0"]
[ECO "D37"]
[WhiteElo "2221"]
[BlackElo "2176"]
[Annotator "NA"]
[PlyCount "115"]
[EventDate "2018.11.10"]
[EventType "team-tourn"]
[EventCountry "SVK"]
[SourceTitle "playchess.com"]
[Source "ChessBase"]
[SourceQuality "1"]
[WhiteTeam "Prakovce"]
[BlackTeam "Osuske"]
[TimeControl "40/5400+30:1800+30"]

1. d4 {[%emt 0:00:00]} d5 {[%emt 0:00:00]} 2. c4 {[%emt 0:00:30]} e6 {[%emt 0:00:30]} 3. Nf3 {[%emt 0:00:30]} Nf6 {[%emt 0:00:30]} 4. Nc3 {[%emt 0:00:30]} Be7 {[%emt 0:00:30]} 5. Bf4 {[%emt 0:00:30]} O-O {[%emt 0:00:30]} 6. Rc1 {[%emt 0:00:30]} c6 {[%emt 0:00:30]} 7. e3 {[%emt 0:00:30]} Nbd7 {[%emt 0:00:30]} 8. h3 {[%emt 0:00:30]} a6 {[%emt 0:00:30]} 9. c5 {[%emt 0:00:30]} b6 {[%emt 0:00:30]} 10. b4 {[%emt 0:00:30]} b5 $16 {[%emt 0:00:30]} (10... Ne4 $11 {keeps the balance.}) 11. a4 {[%emt 0:00:30]} Bb7 {[%emt 0:00:30]} 12. Bd3 {[%emt 0:00:30]} Re8 {[%emt 0:00:30]} 13. O-O {[%emt 0:00:30]} Nf8 {[%emt 0:00:30]} 14. Qe2 {[%emt 0:00:30]} Ng6 {[%emt 0:00:30]} 15. Bg3 {[%emt 0:00:30]} Nh5 {[%emt 0:00:30]} 16. Bh2 {[%emt 0:00:30]} f5 {[%emt 0:00:30]} 17. g4 {[%emt 0:00:30]} fxg4 {[%emt 0:00:30]} 18. hxg4 {[%emt 0:00:30]} Nf6 {[%emt 0:00:30]} 19. Bxg6 {[%emt 0:00:30]} hxg6 {[%emt 0:00:30]} 20. Ne5 {[%emt 0:00:30]} g5 {[%emt 0:47:36]} 21. a5 {[%emt 0:46:19]} Nd7 {[%emt 0:01:41]} 22. Nxd7 {[%emt 0:04:07]} Qxd7 {[%emt 0:00:11]} 23. Be5 {[%emt 0:00:24]} Bf6 {[%emt 0:00:20]} 24. f4 {[%emt 0:00:32]} Bxe5 {[%emt 0:03:16]} 25. fxe5 {[%emt 0:00:34]} Rf8 {[%emt 0:01:09]} 26. Qd3 {[%emt 0:01:33]} Rxf1+ {[%emt 0:01:09]} 27. Rxf1 {[%emt 0:00:51]} Rf8 {[%emt 0:00:12]} 28. Rxf8+ {[%emt 0:00:47]} Kxf8 {[%emt 0:00:02]} 29. Qg6 {[%emt 0:00:37]} Qf7 {[%emt 0:07:20]} 30. Qxg5 {[%emt 0:01:37]} Qf3 {[%emt 0:00:18]} 31. Qf4+ {[%emt 0:00:17]} Qxf4 {[%emt 0:01:12]} 32. exf4 {[%emt 0:00:02]} Bc8 {[%emt 0:03:03]} 33. Kf2 {[%emt 0:00:45]} Bd7 {[%emt 0:00:33]} 34. Kg3 {[%emt 0:00:17]} Kf7 {[%emt 0:03:36]} 35. Kh4 {[%emt 0:00:24]} Kg6 {[%emt 0:00:10]} 36. Ne2 {[%emt 0:02:57]} Bc8 {[%emt 0:04:08]} 37. Ng1 {[%emt 0:03:15]} Bd7 {[%emt 0:01:10]} 38. Nf3 {[%emt 0:00:27]} Bc8 {[%emt 0:04:29]} 39. Kg3 {[%emt 0:04:16]} Kh6 {[%emt 0:04:31]} 40. Nh4 {[%emt 0:00:30]} g6 {[%emt 0:00:30]} 41. Nf3 {[%emt 0:37:06]} Bd7 {[%emt 0:30:30]} 42. Kh4 {[%emt 0:00:00]} Bc8 {[%emt 0:00:30]} 43. f5 {[%emt 0:00:00]} gxf5 {[%emt 0:00:30]} 44. gxf5 {[%emt 0:00:00]} exf5 {[%emt 0:00:30]} 45. Kg3 {[%emt 0:00:00]} Be6 {[%emt 0:00:00]} 46. Kf4 {[%emt 0:00:00]} Kg6 {[%emt 0:00:00]} 47. Nh4+ {[%emt 0:00:00]} Kf7 {[%emt 0:00:00]} 48. Nxf5 {[%emt 0:00:00]} Bd7 {[%emt 0:00:00]} 49. Kg5 {[%emt 0:00:00]} Be6 {[%emt 0:00:00]} 50. Nd6+ {[%emt 0:03:39]} Ke7 {[%emt 0:00:00]} 51. Kg6 {[%emt 0:00:09]} Bh3 {[%emt 0:02:00]} 52. Nf5+ {[%emt 0:04:56]} Ke6 {[%emt 0:01:15]} 53. Nh4 {[%emt 0:00:30]} Bg4 {[%emt 0:00:30]} 54. Kg7 {[%emt 0:00:30]} Bh5 {[%emt 0:00:30]} 55. Kf8 {[%emt 0:00:30]} Kd7 {[%emt 0:00:30]} 56. Nf5 {[%emt 0:00:30]} Be8 {[%emt 0:00:30]} 57. Ng7 {[%emt 0:00:30]} Bg6 {[%emt 0:00:30]} 58. e6+ {[%emt 0:00:30]} 1-0

[Event "SVK ECo-C Extraliga 2018-19"]
[Site "Slovakia"]
[Date "2019.03.09"]
[Round "7.8"]
[White "Szucs, Vladimir"]
[Black "Stauder, Matej"]
[Result "1-0"]
[ECO "E70"]
[WhiteElo "2155"]
[BlackElo "1949"]
[Annotator "NA"]
[PlyCount "47"]
[EventDate "2018.11.10"]
[EventType "team-tourn"]
[EventCountry "SVK"]
[SourceTitle "playchess.com"]
[Source "ChessBase"]
[SourceQuality "1"]
[WhiteTeam "Podhajska"]
[BlackTeam "Zilina"]
[TimeControl "40/5400+30:1800+30"]

1. d4 {[%emt 0:00:00]} Nf6 {[%emt 0:00:00]} 2. c4 {[%emt 0:00:00]} g6 {[%emt 0:00:00]} 3. Nc3 {[%emt 0:00:11]} Bg7 {[%emt 0:00:00]} 4. e4 {[%emt 0:00:17]} O-O {[%emt 0:00:06]} 5. Nf3 {[%emt 0:00:07]} d6 {[%emt 0:01:16]} 6. Be2 e5 {[%emt 0:01:53]} 7. O-O {[%emt 0:02:43]} Nc6 {[%emt 0:00:20]} 8. d5 {[%emt 0:00:47]} Ne7 {[%emt 0:00:18]} 9. Ne1 {[%emt 0:00:39]} a5 {[%emt 0:02:27]} 10. Be3 {[%emt 0:01:08]} Nd7 {[%emt 0:00:38]} 11. Nd3 {[%emt 0:01:59]} f5 {[%emt 0:00:40]} 12. f3 {[%emt 0:00:16]} Nf6 {[%emt 0:03:02]} 13. c5 {[%emt 0:01:16]} f4 {[%emt 0:03:01]} 14. Bf2 {[%emt 0:01:20]} g5 {[%emt 0:00:06]} 15. cxd6 {[%emt 0:02:07]} cxd6 {[%emt 0:00:52]} 16. Rc1 {[%emt 0:03:32]} Bd7 {[%emt 0:02:28]} 17. Qb3 {[%emt 0:02:29]} b5 {[%emt 0:19:09]} 18. Nxb5 {[%emt 0:06:47]} a4 {[%emt 0:06:29]} 19. Qc4 {[%emt 0:02:37]} Rc8 {[%emt 0:00:15]} 20. Qxa4 {[%emt 0:13:17]} Rb8 {[%emt 0:00:47]} 21. Nb4 {[%emt 0:00:54]} Qe8 {[%emt 0:03:52]} 22. Nc6 {[%emt 0:01:22]} Nxc6 {[%emt 0:14:00]} 23. dxc6 {[%emt 0:01:46]} Be6 {[%emt 0:01:44]} 24. Nc7 {[%emt 0:05:14]} 1-0

[Event "SVK ECo-C Extraliga 2018-19"]
[Site "Slovakia"]
[Date "2019.03.09"]
[Round "7.8"]
[White "Viczencz, Peter"]
[Black "Tropp, Oliver"]
[Result "1/2-1/2"]
[ECO "C00"]
[WhiteElo "1979"]
[BlackElo "2169"]
[Annotator "NA"]
[PlyCount "90"]
[EventDate "2018.11.10"]
[EventType "team-tourn"]
[EventCountry "SVK"]
[SourceTitle "playchess.com"]
[Source "ChessBase"]
[SourceQuality "1"]
[WhiteTeam "Komarno"]
[BlackTeam "Liptovska"]
[TimeControl "40/5400+30:1800+30"]

1. e4 {[%emt 0:00:00]} e6 {[%emt 0:00:00]} 2. Qe2 {[%emt 0:00:00]} c5 {[%emt 0:00:51]} 3. Nf3 {[%emt 0:00:15]} Nc6 {[%emt 0:00:43]} 4. g3 {[%emt 0:00:59]} b6 {[%emt 0:00:12]} 5. Bg2 {[%emt 0:00:59]} Bb7 {[%emt 0:00:04]} 6. c3 {[%emt 0:01:34]} d5 {[%emt 0:08:28]} 7. exd5 {[%emt 0:06:00]} Qxd5 {[%emt 0:00:09]} 8. O-O {[%emt 0:00:51]} Nge7 {[%emt 0:01:07]} 9. Na3 $11 {[%emt 0:17:57]} O-O-O {[%emt 0:10:12]} 10. Rd1 {[%emt 0:20:04]} g5 {[%emt 0:31:24]} 11. d4 {[%emt 0:13:48]} g4 {[%emt 0:10:11]} 12. Ne5 {[%emt 0:04:33]} Nxd4 {[%emt 0:00:41]} 13. Bxd5 {[%emt 0:01:14]} Nxe2+ {[%emt 0:00:33]} 14. Kf1 {[%emt 0:00:29]} Rxd5 {[%emt 0:02:26]} 15. Rxd5 {[%emt 0:02:02]} Nxg3+ {[%emt 0:00:40]} 16. hxg3 {[%emt 0:06:06]} Nxd5 {[%emt 0:05:57]} 17. Nxf7 {[%emt 0:01:41]} Rg8 {[%emt 0:00:05]} 18. c4 {[%emt 0:08:50]} Ba6 {[%emt 0:05:35]} 19. Kg1 {[%emt 0:02:10]} Nb4 {[%emt 0:00:07]} 20. Be3 {[%emt 0:04:11]} Be7 {[%emt 0:02:00]} 21. Rd1 {[%emt 0:00:51]} Nxa2 {[%emt 0:04:44]} 22. Bf4 {[%emt 0:03:21]} Nb4 {[%emt 0:04:17]} 23. Re1 {[%emt 0:01:45]} Kd7 {[%emt 0:01:21]} 24. Ne5+ {[%emt 0:01:25]} Ke8 {[%emt 0:00:37]} 25. Nb5 {[%emt 0:00:12]} Bxb5 {[%emt 0:01:26]} 26. cxb5 {[%emt 0:00:05]} Nc2 {[%emt 0:00:17]} 27. Re4 {[%emt 0:00:16]} Nd4 {[%emt 0:02:47]} 28. Nc6 {[%emt 0:00:34]} Nxb5 {[%emt 0:00:04]} 29. Rxe6 {[%emt 0:00:28]} Kd7 {[%emt 0:00:01]} 30. Rh6 {[%emt 0:01:28]} Bd6 {[%emt 0:02:24]} 31. Nxa7 {[%emt 0:00:39]} Bxf4 {[%emt 0:04:03]} 32. Rxh7+ {[%emt 0:00:05]} Ke6 33. Nxb5 {[%emt 0:00:37]} Bc1 {[%emt 0:00:20]} 34. b3 {[%emt 0:00:35]} Rg6 {[%emt 0:00:43]} 35. Kg2 {[%emt 0:00:45]} Bb2 {[%emt 0:01:05]} 36. Rb7 {[%emt 0:00:39]} Kd5 {[%emt 0:00:18]} 37. Rb8 {[%emt 0:00:15]} Kc6 {[%emt 0:01:11]} 38. Na7+ {[%emt 0:00:11]} Kc7 {[%emt 0:00:05]} 39. Re8 {[%emt 0:00:11]} Kb7 {[%emt 0:00:57]} 40. Nb5 {[%emt 0:00:36]} Kc6 {[%emt 0:01:00]} 41. Na7+ {[%emt 0:30:08]} Kb7 {[%emt 0:01:08]} 42. Nb5 {[%emt 0:00:00]} Ka6 {[%emt 0:00:19]} 43. Nc7+ {[%emt 0:00:00]} Ka5 {[%emt 0:00:04]} 44. Re4 {[%emt 0:00:00]} Bd4 {[%emt 0:08:44]} 45. Ne6 {[%emt 0:00:00]} Kb4 {[%emt 0:00:34]} 1/2-1/2

[Event "SVK ECo-C Extraliga 2018-19"]
[Site "Slovakia"]
[Date "2019.03.10"]
[Round "8.6"]
[White "Kopera, Michal"]
[Black "Joba, Arpad"]
[Result "0-1"]
[ECO "C07"]
[WhiteElo "2152"]
[BlackElo "2009"]
[Annotator "NA"]
[PlyCount "104"]
[EventDate "2018.11.10"]
[EventType "team-tourn"]
[EventCountry "SVK"]
[SourceTitle "playchess.com"]
[Source "ChessBase"]
[SourceQuality "1"]
[WhiteTeam "Zilina"]
[BlackTeam "Komarno"]
[TimeControl "40/5400+30:1800+30"]

1. e4 {[%emt 0:00:00]} e6 {[%emt 0:00:00]} 2. d4 {[%emt 0:00:00]} d5 {[%emt 0:00:00]} 3. Nd2 {[%emt 0:00:07]} c5 {[%emt 0:00:21]} 4. exd5 {[%emt 0:03:36]} Qxd5 {[%emt 0:02:04]} 5. Ngf3 {[%emt 0:00:46]} cxd4 {[%emt 0:00:50]} 6. Bc4 {[%emt 0:02:01]} Qd6 {[%emt 0:00:24]} 7. O-O {[%emt 0:04:13]} Nf6 {[%emt 0:00:59]} 8. Nb3 {[%emt 0:03:18]} Nc6 {[%emt 0:00:47]} 9. Nbxd4 {[%emt 0:01:12]} Nxd4 {[%emt 0:00:10]} 10. Nxd4 {[%emt 0:03:59]} a6 {[%emt 0:00:19]} 11. c3 {[%emt 0:11:24]} Qc7 {[%emt 0:04:31]} 12. Bb3 {[%emt 0:03:52]} Bd6 {[%emt 0:03:14]} 13. h3 {[%emt 0:03:02]} O-O {[%emt 0:18:57]} 14. Qf3 {[%emt 0:07:18]} e5 {[%emt 0:04:03]} 15. Nc2 {[%emt 0:07:38]} Bd7 {[%emt 0:05:48]} 16. Bg5 {[%emt 0:06:07]} Bc6 {[%emt 0:01:26]} 17. Qe2 {[%emt 0:03:57]} Ne4 {[%emt 0:00:46]} 18. Be3 {[%emt 0:02:32]} Kh8 {[%emt 0:05:34]} 19. Rfd1 {[%emt 0:04:35]} f5 {[%emt 0:05:07]} 20. f3 {[%emt 0:01:44]} Ng3 {[%emt 0:04:31]} 21. Qf2 {[%emt 0:00:58]} f4 {[%emt 0:01:42]} 22. Bb6 {[%emt 0:01:09]} Qe7 {[%emt 0:00:51]} 23. Bd5 {[%emt 0:01:44]} Rf6 {[%emt 0:08:42]} 24. Nb4 {[%emt 0:07:29]} Be8 {[%emt 0:12:28]} 25. Bb3 {[%emt 0:05:13]} Bxb4 {[%emt 0:01:15]} 26. cxb4 {[%emt 0:00:04]} Qxb4 {[%emt 0:07:28]} 27. Bc5 {[%emt 0:01:55]} Qb5 {[%emt 0:00:15]} 28. Be7 {[%emt 0:05:09]} Rc6 {[%emt 0:02:10]} 29. Rd5 {[%emt 0:02:08]} Qe2 {[%emt 0:02:07]} 30. Re1 {[%emt 0:03:19]} Qxf2+ {[%emt 0:01:31]} 31. Kxf2 {[%emt 0:00:01]} Bf7 {[%emt 0:00:34]} 32. Rdxe5 {[%emt 0:03:16]} Bxb3 {[%emt 0:00:12]} 33. axb3 {[%emt 0:00:03]} Rc2+ {[%emt 0:01:29]} 34. Kg1 {[%emt 0:00:07]} Re8 {[%emt 0:01:08]} 35. Bd6 {[%emt 0:01:55]} Rxe5 {[%emt 0:01:25]} 36. Bxe5 {[%emt 0:00:05]} Kg8 {[%emt 0:00:12]} 37. h4 {[%emt 0:01:58]} Kf7 {[%emt 0:01:25]} 38. Kh2 {[%emt 0:00:09]} Nf5 {[%emt 0:00:55]} 39. Kh3 {[%emt 0:00:25]} h5 {[%emt 0:01:33]} 40. b4 {[%emt 0:00:57]} Ne3 {[%emt 0:01:57]} 41. Bxf4 {[%emt 0:05:20]} Nxg2 {[%emt 0:03:50]} 42. Re4 {[%emt 0:00:18]} Nxf4+ {[%emt 0:00:11]} 43. Rxf4+ {[%emt 0:00:02]} Kg6 {[%emt 0:00:18]} 44. Kg3 {[%emt 0:07:44]} Rxb2 {[%emt 0:00:52]} 45. Rd4 {[%emt 0:00:21]} Kf5 {[%emt 0:04:18]} 46. Rf4+ {[%emt 0:01:13]} Ke5 {[%emt 0:03:28]} 47. Re4+ {[%emt 0:00:50]} Kd5 {[%emt 0:03:49]} 48. Kf4 {[%emt 0:00:06]} Rg2 {[%emt 0:00:19]} 49. Ke3 {[%emt 0:03:48]} g5 {[%emt 0:06:42]} 50. hxg5 {[%emt 0:01:29]} Rxg5 {[%emt 0:01:03]} 51. Kd3 {[%emt 0:03:35]} Rf5 {[%emt 0:00:36]} 52. Ke3 {[%emt 0:03:18]} Re5 {[%emt 0:00:36] Kd4+} 0-1